bitfinex/quotes_SOLUSD_20250313
["timestamp","ask_amount","ask_price","bid_price","bid_amount"]
[1741903033701,18.28393478,122.39,122.33,16.77903478]
[1741903035830,18.28393478,122.39,122.34,28.6087]
[1741903036208,18.28393478,122.39,122.34,45.38773478]
[1741903036537,0.03,122.38,122.34,45.38773478]
[1741903036826,0.03,122.38,122.34,28.6087]
[1741903038028,0.03,122.38,122.34,45.38773478]
[1741903038627,0.03,122.38,122.34,86.25743478]
[1741903038826,0.03,122.38,122.36,16.77903478]
[1741903039411,0.03,122.38,122.37,16.77903478]
[1741903039624,0.03,122.4,122.37,25.78689635]
[1741903039816,0.03,122.4,122.39,16.77903478]
[1741903040137,0.03,122.4,122.39,24.94963478]
[1741903045713,0.03,122.4,122.39,25.09179635]
[1741903046618,0.03,122.4,122.39,43.88360678]
[1741903048216,0.03,122.4,122.39,8.1706]
[1741903048940,0.03,122.4,122.38,8.1712]
[1741903049116,0.03,122.4,122.38,24.95023478]
[1741903049913,0.03,122.4,122.37,8.1716]
[1741903050137,0.03,122.4,122.36,16.77903478]
[1741903050714,0.03,122.4,122.36,24.95143478]
[1741903051428,0.03,122.4,122.36,8.1724]
[1741903051629,8.1999,122.4,122.35,24.95203478]
[1741903051833,16.77903478,122.38,122.33,32.27633478]
[1741903052741,9.8041,122.4,122.33,0.063]
[1741903052742,16.77903478,122.36,122.33,0.063]
[1741903053930,24.95203478,122.36,122.33,0.063]
[1741903055147,16.77903478,122.34,122.33,0.063]
[1741903056940,26.52983478,122.34,122.33,0.063]
[1741903057148,119.8399459,122.34,122.33,0.063]
[1741903057853,18.933972,122.32,122.31,0.063]
[1741903058194,35.71300678,122.32,122.31,0.063]
[1741903059051,43.88820678,122.32,122.31,0.063]
[1741903059816,20.0,122.28,122.22,230.9923]
[1741903060036,16.77903478,122.26,122.22,230.9923]
[1741903061546,16.77903478,122.27,122.22,230.9923]
[1741903062323,26.17159212,122.27,122.22,230.9923]
[1741903065258,26.17159212,122.27,122.22,257.16389212]
[1741903066463,26.17159212,122.27,122.22,230.9923]
[1741903068141,26.17159212,122.27,122.22,257.16389212]
[1741903068352,46.17159212,122.28,122.22,257.16389212]
[1741903070949,46.17159212,122.28,122.22,40.86389212]
[1741903071861,26.17159212,122.27,122.22,14.6923]
[1741903072457,26.17159212,122.27,122.22,14.7553]
[1741903075952,26.17159212,122.27,122.22,40.92689212]
[1741903077868,26.17159212,122.26,122.22,14.7553]
[1741903082272,16.7522137,122.26,122.22,14.7553]
[1741903083372,24.9315137,122.26,122.22,14.7553]
[1741903084046,16.7522137,122.26,122.22,14.7553]
[1741903084252,118.8522137,122.28,122.22,31.5075137]
[1741903084754,118.8522137,122.28,122.22,51.9624137]
[1741903085051,16.7522137,122.27,122.22,51.9624137]
[1741903085773,102.1,122.28,122.23,16.7522137]
[1741903086665,118.8522137,122.28,122.23,16.7522137]
[1741903087481,118.8522137,122.28,122.24,8.1806]
[1741903090776,98.8522137,122.28,122.24,8.1806]
[1741903090966,16.7522137,122.29,122.24,8.1806]
[1741903091655,16.7522137,122.28,122.23,8.1812]
[1741903093969,16.7522137,122.27,122.23,8.1812]
[1741903096264,24.9302137,122.28,122.23,8.1812]
[1741903100289,16.7522137,122.27,122.23,8.1812]
[1741903100981,16.7522137,122.24,122.22,0.063]
[1741903101182,82.38432314,122.26,122.22,0.063]
[1741903101183,36.7522137,122.23,122.22,0.063]
[1741903101390,44.0122137,122.23,122.22,0.063]
[1741903101975,52.1934137,122.23,122.22,0.063]
[1741903108097,71.1273857,122.23,122.22,0.063]
[1741903110106,20.0,122.19,122.16,0.063]
[1741903110265,16.7522137,122.17,122.14,7.5851]
[1741903110474,36.7522137,122.16,122.11,20.53623553]
[1741903110720,36.7522137,122.16,122.11,37.28844923]
[1741903111496,20.0,122.16,122.12,16.7522137]
[1741903112998,20.0,122.16,122.11,28.72523553]
[1741903112999,20.0,122.16,122.11,32.7684137]
[1741903113793,20.0,122.18,122.13,16.7522137]
[1741903114097,16.7522137,122.2,122.14,16.7522137]
[1741903115111,16.7522137,122.2,122.15,8.1866]
[1741903115407,16.7522137,122.19,122.15,8.1866]
[1741903115991,16.7522137,122.2,122.15,8.1866]
[1741903116187,16.7522137,122.2,122.16,8.2668]
[1741903117514,16.7522137,122.2,122.17,8.1853]
[1741903118714,82.1,122.22,122.17,8.1853]
[1741903119015,36.7522137,122.22,122.17,24.9375137]
[1741903119588,0.03,122.2,122.17,24.9375137]
[1741903120115,0.03,122.2,122.17,45.4007137]
[1741903120323,0.03,122.2,122.19,8.32606157]
[1741903120617,98.8522137,122.25,122.2,23.3273137]
[1741903120794,16.7522137,122.25,122.2,23.3273137]
[1741903121114,82.1,122.28,122.22,16.7522137]
[1741903121314,16.7522137,122.27,122.22,16.7522137]
[1741903121690,98.8522137,122.28,122.22,16.7522137]
[1741903122416,16.7522137,122.27,122.23,8.1812]
[1741903123905,16.7522137,122.29,122.24,16.7522137]
[1741903124296,16.7522137,122.29,122.25,8.1799]
[1741903125209,0.03,122.31,122.26,6.626]
[1741903125389,16.7522137,122.3,122.26,6.626]
[1741903126224,16.7822137,122.31,122.26,24.9161137]
[1741903126522,0.03,122.31,122.27,24.9308137]
[1741903126694,0.03,122.31,122.27,45.3773137]
[1741903127117,0.03,122.31,122.28,16.7522137]
[1741903128328,0.03,122.31,122.29,8.1772]
[1741903130926,0.03,122.31,122.28,8.1779]
[1741903132025,26.14380901,122.3,122.26,8.1639]
[1741903132522,26.14380901,122.29,122.26,8.1639]
[1741903136828,34.32110901,122.29,122.26,8.1639]
[1741903137009,34.32110901,122.29,122.26,6.626]
[1741903137204,26.14380901,122.29,122.26,6.626]
[1741903137412,26.17380901,122.31,122.26,40.94890901]
[1741903137825,26.17380901,122.31,122.26,14.8051]
[1741903138331,26.14380901,122.3,122.26,14.8051]
[1741903140434,26.14380901,122.29,122.26,6.626]
[1741903140930,26.14380901,122.29,122.26,14.8051]
[1741903142533,26.14380901,122.3,122.26,14.8051]
[1741903144709,34.35040901,122.3,122.26,6.626]
[1741903145322,34.35040901,122.3,122.26,14.8052]
[1741903148034,26.17380901,122.3,122.26,14.8052]
[1741903148218,0.03,122.3,122.26,40.94900901]
[1741903149130,0.03,122.3,122.26,35.2534]
[1741903155866,16.76767764,122.3,122.26,14.8052]
[1741903156032,16.73767764,122.27,122.23,8.1438]
[1741903156353,16.73767764,122.26,122.23,8.1438]
[1741903156528,16.73767764,122.26,122.23,16.3248]
[1741903156723,16.73767764,122.24,122.2,0.063]
[1741903156923,16.73767764,122.22,122.2,0.063]
[1741903158255,26.19194987,122.22,122.2,0.063]
[1741903159761,26.19194987,122.21,122.2,0.063]
[1741903161845,26.19194987,122.22,122.2,0.063]
[1741903162052,26.19194987,122.25,122.2,26.25494987]
[1741903162364,26.19194987,122.27,122.22,26.19194987]
[1741903162565,33.45194987,122.28,122.22,27.83714987]
[1741903162970,33.45194987,122.28,122.23,26.19194987]
[1741903162971,7.26,122.28,122.23,26.19194987]
[1741903163147,0.03,122.3,122.25,26.33411144]
[1741903163347,0.03,122.3,122.26,26.19194987]
[1741903163965,0.03,122.3,122.27,8.1786]
[1741903164740,0.03,122.3,122.28,6.3394]
[1741903165136,0.03,122.3,122.26,34.37114987]
[1741903165457,26.22194987,122.3,122.26,8.1792]
[1741903167367,26.22194987,122.3,122.25,40.62341144]
[1741903168469,26.22194987,122.3,122.25,14.43146157]
[1741903169767,26.19194987,122.29,122.25,14.2893]
[1741903169957,26.19194987,122.28,122.25,6.1096]
[1741903171069,26.19194987,122.29,122.25,6.1096]
[1741903171256,0.03,122.3,122.26,26.33411144]
[1741903171772,0.03,122.3,122.26,8.32096157]
[1741903172174,0.03,122.3,122.26,34.51291144]
[1741903173952,0.03,122.3,122.26,62.32111144]
[1741903175172,0.03,122.3,122.26,36.12916157]
[1741903175374,0.03,122.3,122.26,15.68096157]
[1741903185275,0.03,122.3,122.26,32.41972615]
[1741903187977,16.76876458,122.3,122.26,8.1788]
[1741903188687,16.73876458,122.28,122.25,6.1096]
[1741903188863,16.73876458,122.27,122.23,8.181]
[1741903189057,16.73876458,122.26,122.23,8.181]
[1741903189385,0.03,122.3,122.25,16.73876458]
[1741903189584,0.03,122.3,122.26,24.91796458]
[1741903191085,0.03,122.3,122.26,45.36616458]
[1741903191672,0.03,122.3,122.27,23.51812615]
[1741903192187,0.03,122.3,122.29,16.88092615]
[1741903192365,0.03,122.3,122.29,35.53057501]
[1741903192962,0.03,122.3,122.29,43.70777501]
[1741903195996,0.0001,122.31,122.3,0.14216157]
[1741903196170,0.0001,122.31,122.3,16.88092615]
[1741903197288,0.0001,122.31,122.3,25.05752615]
[1741903197494,0.03,122.33,122.32,1.70896157]
[1741903197495,0.0001,122.33,122.32,1.70896157]
[1741903197670,0.0001,122.33,122.32,25.76772615]
[1741903198389,0.03,122.4,122.34,0.14216157]
[1741903198589,0.03,122.4,122.39,18.26726458]
[1741903198889,0.03,122.4,122.39,25.86942615]
[1741903199190,0.03,122.4,122.39,44.66123658]
[1741903199370,0.03,122.4,122.39,52.83183658]
[1741903200304,0.03,122.4,122.38,216.38]
[1741903200588,26.09773239,122.39,122.35,0.14216157]
[1741903200778,26.09773239,122.38,122.33,8.1746]
[1741903200980,26.09773239,122.37,122.32,23.9121]
[1741903201178,26.09773239,122.37,122.32,16.4121]
[1741903201393,26.09773239,122.37,122.32,42.50983239]
[1741903201596,26.09773239,122.39,122.33,0.14216157]
[1741903201772,26.09773239,122.39,122.33,26.23989396]
[1741903201976,26.09773239,122.37,122.32,14.8244]
[1741903202192,26.09773239,122.36,122.32,14.8244]
[1741903202396,26.09773239,122.37,122.32,14.8244]
[1741903203499,26.09773239,122.39,122.33,26.23989396]
[1741903203795,26.09773239,122.39,122.34,26.09773239]
[1741903203999,26.12773239,122.4,122.35,26.23989396]
[1741903204184,26.12773239,122.4,122.35,26.09773239]
[1741903204391,26.12773239,122.4,122.34,26.09773239]
[1741903204898,26.09773239,122.38,122.32,142.36023239]
[1741903205077,26.09773239,122.38,122.32,61.36023239]
[1741903205394,26.09773239,122.38,122.32,40.92213239]
[1741903206386,26.09773239,122.36,122.32,8.175]
[1741903206589,26.09773239,122.37,122.32,8.175]
[1741903206808,26.09773239,122.38,122.32,34.27273239]
[1741903207356,26.09773239,122.37,122.32,34.27273239]
[1741903208625,26.09773239,122.37,122.32,8.175]
[1741903209851,27.62033239,122.38,122.32,34.27273239]
[1741903210222,26.09773239,122.38,122.33,18.79181043]
[1741903210421,0.03,122.4,122.37,26.09773239]
[1741903212204,0.03,122.4,122.38,8.1712]
[1741903212732,26.12773239,122.4,122.35,32.45753239]
[1741903213043,26.09773239,122.38,122.34,8.1736]
[1741903213236,26.09773239,122.37,122.33,15.7343]
[1741903214410,26.09773239,122.37,122.33,8.2373]
[1741903215308,26.09773239,122.38,122.33,8.2373]
[1741903215487,26.09773239,122.38,122.33,34.33503239]
[1741903217600,0.03,122.4,122.35,26.09773239]
[1741903217783,0.03,122.4,122.36,26.09773239]
[1741903218610,0.03,122.4,122.35,33.63773239]
[1741903218811,26.12773239,122.4,122.35,33.63773239]
[1741903219108,26.12773239,122.4,122.36,8.1726]
[1741903219490,0.03,122.4,122.36,8.1726]
[1741903220213,0.03,122.4,122.36,34.27033239]
[1741903222031,0.03,122.4,122.36,54.70183239]
[1741903224023,26.12773239,122.4,122.36,8.1726]
[1741903224317,26.09773239,122.38,122.35,8.1732]
[1741903224715,26.09773239,122.37,122.34,8.1738]
[1741903225605,26.09773239,122.36,122.33,0.063]
[1741903225793,26.09773239,122.35,122.33,0.063]
[1741903225998,26.09773239,122.34,122.33,0.063]
[1741903226424,34.27163239,122.34,122.33,0.063]
[1741903227099,53.20560439,122.34,122.33,0.063]
[1741903227303,79.30333678,122.34,122.33,0.063]
[1741903227615,101.033972,122.33,122.24,8.1806]
[1741903227934,26.09773239,122.28,122.24,8.1806]
[1741903228813,26.09773239,122.28,122.23,38.15337096]
[1741903228814,26.09773239,122.26,122.23,38.15337096]
[1741903229127,26.09773239,122.25,122.21,8.1824]
[1741903229501,26.09773239,122.26,122.21,8.1824]
[1741903230221,41.88629043,122.25,122.21,8.1824]
[1741903230432,41.88629043,122.26,122.21,50.06869043]
[1741903230609,41.88629043,122.27,122.23,8.1812]
[1741903230810,125.56689043,122.3,122.25,41.88629043]
[1741903231002,41.88629043,122.29,122.24,41.88629043]
[1741903231403,125.56689043,122.3,122.24,41.88629043]
[1741903232628,125.56689043,122.3,122.25,8.1799]
[1741903232840,82.1,122.3,122.25,70.51599043]
[1741903233132,43.41369043,122.34,122.28,41.88629043]
[1741903233498,6.2433,122.35,122.29,41.88629043]
[1741903233725,41.88629043,122.34,122.29,41.88629043]
[1741903233928,41.88629043,122.35,122.29,41.88629043]
[1741903234427,41.88629043,122.33,122.28,49.44629043]
[1741903234727,41.88629043,122.33,122.29,8.1772]
[1741903235323,41.88629043,122.34,122.29,8.1772]
[1741903235526,41.88629043,122.36,122.3,41.88629043]
[1741903235705,41.88629043,122.36,122.31,41.88629043]
[1741903235900,123.98629043,122.37,122.31,41.88629043]
[1741903236629,123.98629043,122.37,122.32,41.88629043]
[1741903236828,123.98629043,122.37,122.33,8.1746]
[1741903237613,41.88629043,122.36,122.33,8.1746]
[1741903237809,41.88629043,122.35,122.32,8.1752]
[1741903238008,41.88629043,122.34,122.3,8.1766]
[1741903238927,0.03,122.33,122.3,8.1766]
[1741903240534,0.03,122.33,122.3,50.06289043]
[1741903245419,0.03,122.33,122.32,8.1752]
[1741903247222,0.03,122.4,122.35,20.0]
[1741903247425,0.03,122.4,122.36,41.88629043]
[1741903247623,0.03,122.4,122.35,61.88629043]
[1741903247942,0.03,122.4,122.36,41.88629043]
[1741903248621,0.03,122.4,122.37,8.1719]
[1741903250214,41.91629043,122.4,122.37,8.1719]
[1741903251230,0.03,122.4,122.37,8.1719]
[1741903251735,41.88629043,122.39,122.36,8.1726]
[1741903251927,41.88629043,122.39,122.34,8.1739]
[1741903253372,41.88629043,122.39,122.34,50.06019043]
[1741903254644,41.91629043,122.4,122.34,50.06019043]
[1741903256249,34.31803129,122.4,122.34,34.29183129]
[1741903256745,8.2001,122.4,122.34,34.29183129]
[1741903256924,26.14793129,122.4,122.34,34.29183129]
[1741903260549,34.31783129,122.4,122.34,34.29183129]
[1741903260750,26.11793129,122.39,122.34,34.29183129]
[1741903263360,26.11793129,122.39,122.34,54.72663129]
[1741903263544,0.03,122.4,122.34,54.72663129]
[1741903263545,0.03,122.4,122.36,26.11793129]
[1741903264254,0.03,122.4,122.38,26.11793129]
[1741903264443,0.03,122.4,122.39,26.11793129]
[1741903264650,0.03,122.4,122.39,34.28853129]
[1741903264851,0.03,122.43,122.39,54.71503129]
[1741903265062,0.03,122.43,122.42,26.11793129]
[1741903266265,0.03,122.43,122.4,26.11793129]
[1741903266666,0.03,122.43,122.39,28.5971]
[1741903266873,0.03,122.43,122.39,54.71503129]
[1741903267173,0.03,122.43,122.39,34.28853129]
[1741903272280,0.03,122.43,122.42,26.11793129]
[1741903273978,0.03,122.43,122.42,34.28643129]
[1741903276376,0.03,122.43,122.42,8.1685]
[1741903278163,0.03,122.43,122.42,34.42859286]
[1741903278384,0.0001,122.43,122.42,60.68040329]
[1741903281380,0.0001,122.43,122.42,68.76880329]
[1741903282564,0.0001,122.43,122.42,69.99344958]
[1741903283164,0.0001,122.43,122.42,150.99344958]
[1741903283483,0.0001,122.43,122.42,149.76880329]
[1741903286287,0.0001,122.43,122.42,48.34369286]
[1741903287186,0.0001,122.43,122.42,67.13550329]
[1741903289491,0.0001,122.43,122.42,67.19850329]
[1741903290385,0.0001,122.43,122.42,0.063]
[1741903291478,0.0001,122.43,122.42,34.34943129]
[1741903291680,0.0001,122.43,122.42,26.18093129]
[1741903292389,0.0001,122.43,122.42,0.063]
[1741903294069,26.11803129,122.43,122.42,0.063]
[1741903295893,34.28593129,122.43,122.42,0.063]
[1741903296482,0.0001,122.43,122.42,0.063]
[1741903297377,25.87803129,122.45,122.42,0.063]
[1741903298082,26.14793129,122.46,122.42,0.063]
[1741903298270,0.03,122.46,122.42,0.063]
[1741903298467,0.03,122.46,122.42,26.18093129]
[1741903299476,0.03,122.46,122.43,8.1679]
[1741903301696,0.03,122.46,122.42,8.2315]
[1741903302405,26.11793129,122.45,122.42,0.063]
[1741903302781,26.14793129,122.46,122.42,0.063]
[1741903303195,26.11793129,122.45,122.42,0.063]
[1741903303811,8.1959,122.46,122.42,0.063]
[1741903303996,34.31383129,122.46,122.42,0.063]
[1741903304299,26.11793129,122.45,122.42,0.063]
[1741903306200,26.14793129,122.46,122.42,0.063]
[1741903306404,20.03,122.46,122.42,0.063]
[1741903306607,46.14793129,122.46,122.42,0.063]
[1741903307607,20.03,122.46,122.42,0.063]
[1741903308111,20.03,122.46,122.42,26.32309286]
[1741903308112,0.03,122.46,122.42,26.32309286]
[1741903308418,0.03,122.46,122.43,8.1679]
[1741903308880,26.14793129,122.46,122.43,8.1679]
[1741903309080,26.14793129,122.46,122.42,8.2314]
[1741903309412,26.11793129,122.45,122.42,8.2314]
[1741903309913,26.14793129,122.46,122.42,8.2314]
[1741903311507,0.03,122.46,122.42,61.23063129]
[1741903311807,0.03,122.46,122.43,0.14216157]
[1741903312001,0.03,122.46,122.43,26.26009286]
[1741903312190,0.03,122.46,122.44,8.1672]
[1741903312914,0.03,122.46,122.42,26.9443]
[1741903313218,26.14793129,122.46,122.43,8.1675]
[1741903313811,0.03,122.45,122.43,8.1675]
[1741903314205,0.03,122.45,122.43,34.28543129]
[1741903320313,0.03,122.45,122.43,16.69102806]
[1741903320935,0.03,122.45,122.42,8.2315]
[1741903321110,16.72102806,122.45,122.42,8.2315]
[1741903321292,0.03,122.45,122.42,8.2315]
[1741903321901,0.03,122.45,122.42,0.063]
[1741903322188,0.03,122.45,122.44,0.28432314]
[1741903322404,0.03,122.45,122.44,35.62500006]
[1741903322595,0.03,122.45,122.44,16.83318963]
[1741903322791,0.03,122.45,122.43,7.42]
[1741903323119,0.03,122.45,122.42,0.063]
[1741903323300,16.69102806,122.44,122.42,0.063]
[1741903323809,16.69102806,122.43,122.42,0.063]
[1741903324215,24.85892806,122.43,122.42,0.063]
[1741903324594,16.69102806,122.43,122.42,0.063]
[1741903325219,16.69102806,122.44,122.42,0.063]
[1741903325991,18.35772806,122.45,122.42,0.063]
[1741903326290,16.69102806,122.44,122.42,0.063]
[1741903326488,16.69102806,122.43,122.42,0.063]
[1741903326697,36.9753512,122.43,122.42,0.063]
[1741903326900,20.0,122.39,122.34,20.88273553]
[1741903327135,16.69102806,122.38,122.34,20.88273553]
[1741903327305,16.69102806,122.38,122.34,12.70903553]
[1741903327623,82.1,122.42,122.37,16.83318963]
[1741903327811,0.03,122.45,122.39,16.69102806]
[1741903328008,0.03,122.45,122.4,8.1699]
[1741903328009,16.69102806,122.44,122.4,8.1699]
[1741903328206,26.09718538,122.44,122.4,8.1699]
[1741903328600,0.03,122.45,122.4,8.1699]
[1741903328799,26.09718538,122.44,122.4,8.1699]
[1741903329101,26.09718538,122.42,122.37,26.09718538]
[1741903329413,26.09718538,122.44,122.39,26.09718538]
[1741903330091,26.09718538,122.44,122.4,8.1699]
[1741903331121,0.03,122.45,122.41,26.09718538]
[1741903331418,0.03,122.45,122.42,26.09718538]
[1741903331593,0.03,122.45,122.41,34.10208538]
[1741903331791,26.09718538,122.44,122.4,8.1699]
[1741903331996,0.03,122.45,122.42,26.09718538]
[1741903332223,0.03,122.45,122.43,8.1679]
[1741903333223,26.12718538,122.45,122.4,26.09718538]
[1741903333402,26.09718538,122.44,122.4,8.1697]
[1741903333798,0.03,122.45,122.41,26.23934695]
[1741903334724,0.03,122.45,122.42,8.1685]
[1741903335027,0.03,122.45,122.41,8.169]
[1741903335199,26.12718538,122.45,122.41,8.169]
[1741903335519,0.03,122.45,122.41,8.169]
[1741903335728,0.03,122.45,122.41,34.26618538]
[1741903335946,0.03,122.45,122.42,26.09718538]
[1741903336093,0.03,122.45,122.41,54.68928538]
[1741903336298,0.03,122.45,122.42,26.23934695]
[1741903336518,0.03,122.45,122.44,61.03614695]
[1741903336801,0.03,122.45,122.44,8.1672]
[1741903336998,26.12718538,122.45,122.39,22.0338]
[1741903337220,26.12718538,122.45,122.4,26.23934695]
[1741903337500,0.03,122.45,122.41,26.09718538]
[1741903337721,26.09718538,122.44,122.42,0.063]
[1741903337910,26.09718538,122.43,122.42,0.063]
[1741903338497,0.03,122.45,122.42,0.063]
[1741903338704,0.03,122.45,122.43,26.09718538]
[1741903338911,0.03,122.45,122.42,0.063]
[1741903339733,0.03,122.45,122.43,26.09718538]
[1741903339933,0.03,122.45,122.42,0.063]
[1741903340914,26.09718538,122.43,122.42,0.063]
[1741903341240,0.03,122.45,122.42,26.30234695]
[1741903341812,0.03,122.45,122.42,0.063]
[1741903343542,26.09718538,122.44,122.42,0.063]
[1741903343712,0.03,122.45,122.42,0.20516157]
[1741903343914,0.03,122.45,122.42,0.063]
[1741903344124,26.12718538,122.45,122.42,0.063]
[1741903344438,0.03,122.45,122.42,0.063]
[1741903344924,26.12718538,122.45,122.42,0.063]
[1741903345234,26.09718538,122.44,122.42,0.063]
[1741903345737,0.03,122.45,122.42,0.063]
[1741903345955,0.03,122.45,122.42,26.30234695]
[1741903346237,0.03,122.45,122.42,0.063]
[1741903346616,0.03,122.45,122.44,0.14216157]
[1741903346813,0.03,122.46,122.43,43.0303]
[1741903347125,0.03,122.46,122.43,22.6105]
[1741903347330,0.03,122.46,122.44,26.23934695]
[1741903347722,0.03,122.46,122.43,43.0303]
[1741903347924,26.12718538,122.46,122.43,8.1679]
[1741903348125,0.03,122.46,122.43,8.1679]
[1741903348341,0.03,122.46,122.43,28.5877]
[1741903348651,0.03,122.46,122.43,54.68488538]
[1741903349240,0.03,122.46,122.45,26.23934695]
[1741903350130,0.03,122.46,122.43,8.1679]
[1741903350332,0.03,122.46,122.43,34.26508538]
[1741903351341,0.03,122.46,122.44,26.23934695]
[1741903351844,0.03,122.46,122.45,20.0]
[1741903352847,0.03,122.46,122.43,8.1679]
[1741903354254,0.03,122.46,122.44,26.23934695]
[1741903354543,0.03,122.46,122.43,8.1679]
[1741903354736,0.03,122.46,122.43,34.26508538]
[1741903354943,0.03,122.46,122.44,26.09718538]
[1741903355334,0.03,122.46,122.43,54.68488538]
[1741903356050,0.03,122.46,122.44,0.14216157]
[1741903356257,0.03,122.46,122.44,26.23934695]
[1741903356930,0.03,122.46,122.43,8.1672]
[1741903358833,0.03,122.46,122.42,0.063]
[1741903358834,26.09718538,122.45,122.42,0.063]
[1741903359736,0.03,122.46,122.42,0.063]
[1741903359737,26.12718538,122.46,122.42,0.063]
[1741903360056,0.03,122.46,122.42,0.20516157]
[1741903360655,0.03,122.46,122.42,0.063]
[1741903360836,26.12718538,122.46,122.42,0.063]
[1741903361254,26.12718538,122.46,122.43,0.063]
[1741903361643,26.09718538,122.45,122.43,0.063]
[1741903362353,26.12718538,122.46,122.43,0.063]
[1741903362565,0.03,122.46,122.43,0.063]
[1741903364861,0.03,122.46,122.43,26.16018538]
[1741903365159,0.03,122.46,122.44,8.1672]
[1741903365363,0.03,122.46,122.44,34.26438538]
[1741903365939,0.03,122.46,122.44,8.1672]
[1741903367266,0.03,122.46,122.43,54.74788538]
[1741903368952,0.03,122.46,122.44,26.09718538]
[1741903369560,0.03,122.46,122.43,54.74788538]
[1741903371161,0.03,122.46,122.43,34.32808538]
[1741903371356,0.03,122.46,122.43,8.2309]
[1741903373162,26.12718538,122.46,122.43,8.2309]
[1741903373561,0.03,122.46,122.43,0.063]
[1741903376067,26.12718538,122.46,122.43,0.063]
[1741903376547,26.09718538,122.45,122.43,0.063]
[1741903376748,26.09718538,122.44,122.43,0.063]
[1741903376949,27.60808538,122.45,122.43,0.063]
[1741903377741,26.09718538,122.44,122.43,0.063]
[1741903378570,34.54870852,122.44,122.43,0.063]
[1741903378750,53.19835738,122.44,122.43,0.063]
[1741903379450,135.29835738,122.44,122.43,0.063]
[1741903379652,143.15835738,122.44,122.43,0.063]
[1741903379864,149.20385738,122.44,122.42,0.063]
[1741903380174,26.09718538,122.43,122.42,0.063]
[1741903381071,34.26508538,122.43,122.42,0.063]
[1741903382151,53.19905738,122.43,122.42,0.063]
[1741903383752,4.13671446,122.43,122.42,0.063]
[1741903383948,26.09718538,122.44,122.42,0.063]
[1741903384172,27.60808538,122.45,122.42,0.063]
[1741903384378,26.09718538,122.45,122.42,0.063]
[1741903384675,0.03,122.43,122.42,0.063]
[1741903389474,26.12718538,122.43,122.42,0.063]
[1741903390885,0.03,122.43,122.42,0.063]
[1741903392376,0.03,122.46,122.42,55.71538538]
[1741903392689,0.03,122.46,122.45,26.09718538]
[1741903392985,0.03,122.46,122.43,26.09718538]
[1741903393560,0.03,122.46,122.42,35.71538538]
[1741903394051,26.09718538,122.47,122.43,8.1679]
[1741903395175,26.09718538,122.49,122.43,34.26508538]
[1741903395775,26.09718538,122.48,122.43,54.68488538]
[1741903395960,26.09718538,122.48,122.43,8.1679]
[1741903397384,26.09718538,122.48,122.43,34.26508538]
[1741903397576,26.09718538,122.48,122.43,8.1679]
[1741903398278,26.09718538,122.49,122.43,54.68488538]
[1741903401474,0.03,122.5,122.46,26.09718538]
[1741903401779,0.03,122.5,122.46,8.1659]
[1741903401986,26.12718538,122.5,122.46,8.1659]
[1741903402180,0.03,122.5,122.46,8.1659]
[1741903403366,0.03,122.5,122.47,27.82954695]
[1741903403566,0.03,122.5,122.49,8.1639]
[1741903407183,0.03,122.5,122.49,34.40324695]
[1741903408686,0.03,122.51,122.49,53.05289581]
[1741903408887,0.03,122.51,122.5,26.23934695]
[1741903409483,0.03,122.51,122.49,34.40324695]
[1741903410393,0.03,122.51,122.5,26.23934695]
[1741903412289,0.03,122.51,122.5,34.40254695]
[1741903413589,0.0001,122.52,122.5,270.47838438]
[1741903413805,0.0001,122.52,122.51,27.77594695]
[1741903414293,0.0001,122.52,122.51,72.66494276]
[1741903414473,0.0001,122.52,122.51,46.56775738]
[1741903415384,0.0001,122.52,122.51,35.93844695]
[1741903415787,0.0001,122.52,122.51,27.77594695]